bitfinex/quotes_SOLUSD_20241024
["timestamp","ask_amount","ask_price","bid_price","bid_amount"]
[1729752690961,38.79910362,173.1,173.04,18.67361362]
[1729752691157,20.12549,173.1,173.07,18.67361362]
[1729752692869,20.12549,173.1,173.06,18.67361362]
[1729752695468,20.12549,173.1,173.07,18.67361362]
[1729752698553,0.12549,173.08,172.98,0.1]
[1729752698757,18.67361362,173.07,173.02,18.67361362]
[1729752699054,18.67361362,173.06,173.01,18.67361362]
[1729752699250,30.052074,173.08,172.96,18.494]
[1729752699251,42.57598762,173.05,172.99,18.67361362]
[1729752699461,18.67361362,173.04,172.98,18.67361362]
[1729752701583,42.57598762,173.03,172.98,18.67361362]
[1729752701888,42.57598762,173.03,172.93,0.1]
[1729752701889,18.67361362,173.02,172.97,18.67361362]
[1729752704571,42.57598762,173.03,172.98,18.67361362]
[1729752706873,42.57598762,173.03,172.92,19.98178537]
[1729752707072,18.67361362,173.02,172.97,18.67361362]
[1729752708779,18.67361362,173.02,172.97,9.33680681]
[1729752708996,18.67361362,173.02,172.97,18.67361362]
[1729752713078,23.902374,173.03,173.0,18.67361362]
[1729752713588,23.902374,173.03,172.99,18.67361362]
[1729752715390,0.12549,173.03,172.99,18.67361362]
[1729752715600,20.12549,173.03,172.99,18.67361362]
[1729752715798,42.45049762,173.04,172.99,18.67361362]
[1729752715991,21.1977895,173.07,172.92,18.8811]
[1729752715992,33.87691362,173.07,173.02,18.67361362]
[1729752716191,15.2033,173.07,173.03,18.67361362]
[1729752717193,0.12549,173.06,173.03,18.67361362]
[1729752718089,0.12549,173.06,173.02,18.67361362]
[1729752718298,23.902374,173.06,173.02,18.67361362]
[1729752720608,20.0,173.07,173.04,18.67361362]
[1729752720817,20.0,173.07,173.05,18.67361362]
[1729752721113,62.57598762,173.09,173.05,18.67361362]
[1729752721290,62.57598762,173.09,173.04,18.67361362]
[1729752721893,43.902374,173.09,173.05,18.67361362]
[1729752723304,15.1086,173.11,173.07,18.67361362]
[1729752723498,43.902374,173.1,173.08,18.67361362]
[1729752723802,23.902374,173.1,173.08,18.67361362]
[1729752723990,23.776884,173.1,173.08,18.67361362]
[1729752724197,15.1086,173.11,173.08,18.67361362]
[1729752724709,6.3441,173.12,173.09,18.67361362]
[1729752725410,23.776884,173.12,173.09,18.67361362]
[1729752729412,0.12549,173.12,173.09,18.67361362]
[1729752732305,20.25098,173.08,172.98,15.2331]
[1729752732609,18.67361362,173.03,172.98,18.67361362]
[1729752733189,18.67361362,173.04,172.99,18.67361362]
[1729752734937,18.67361362,173.03,172.98,18.67361362]
[1729752736112,18.67361362,173.04,172.99,18.67361362]
[1729752747941,18.67361362,173.01,172.94,16.1325]
[1729752748235,18.67361362,173.0,172.96,18.67361362]
[1729752748733,18.67361362,173.01,172.96,18.67361362]
[1729752749438,18.67361362,173.02,172.97,18.67361362]
[1729752749933,18.67361362,173.02,172.94,16.1325]
[1729752750238,18.67361362,173.02,172.97,18.67361362]
[1729752758138,18.67361362,173.01,172.96,18.67361362]
[1729752762739,43.902374,173.03,172.96,18.67361362]
[1729752762926,18.67361362,173.01,172.94,16.1325]
[1729752763248,18.67361362,173.01,172.96,18.67361362]
[1729752766448,18.67361362,173.01,172.94,16.1325]
[1729752766625,18.67361362,173.01,172.96,18.67361362]
[1729752769743,0.12549,173.03,172.98,18.67361362]
[1729752769949,5.7782,173.07,173.02,18.67361362]
[1729752770162,24.45181362,173.07,173.02,18.67361362]
[1729752770466,28.08585133,173.09,173.05,18.67361362]
[1729752770637,22.1029,173.09,173.05,18.67361362]
[1729752771168,46.55391362,173.09,173.04,18.67361362]
[1729752772259,40.77651362,173.09,173.04,18.67361362]
[1729752772461,40.77651362,173.09,172.98,0.12549]
[1729752772654,40.77651362,173.09,173.04,18.67361362]
[1729752772969,18.67361362,173.08,172.98,0.22549]
[1729752773272,18.67361362,173.08,173.03,18.67361362]
[1729752773943,40.77651362,173.09,173.04,18.67361362]
[1729752775268,40.77651362,173.09,172.98,0.22549]
[1729752775441,18.67361362,173.08,173.03,18.67361362]
[1729752777668,18.67361362,173.08,172.98,0.22549]
[1729752777847,18.67361362,173.08,173.03,18.67361362]
[1729752778668,42.57598762,173.07,172.96,3.46]
[1729752778966,18.67361362,173.06,173.01,18.67361362]
[1729752781848,18.67361362,173.03,172.98,9.33680681]
[1729752782066,23.902374,173.05,173.01,18.67361362]
[1729752782255,18.67361362,173.05,173.0,18.67361362]
[1729752782957,44.027864,173.08,173.0,18.67361362]
[1729752783264,43.902374,173.06,173.01,18.67361362]
[1729752785269,43.902374,173.07,173.03,18.67361362]
[1729752785466,46.55391362,173.09,173.04,18.67361362]
[1729752785644,24.29161711,173.08,173.04,18.67361362]
[1729752785969,20.0,173.08,173.04,18.67361362]
[1729752787873,20.0,173.08,173.0,74.79445448]
[1729752788050,16.2926,173.13,173.07,18.67361362]
[1729752788267,16.2926,173.13,173.09,18.67361362]
[1729752788663,9.33680681,173.12,173.07,18.67361362]
[1729752788853,9.33680681,173.12,173.0,81.85113288]
[1729752788854,18.67361362,173.12,173.06,18.67361362]
[1729752789054,24.45001362,173.12,173.06,18.67361362]
[1729752789969,23.902374,173.11,173.06,18.67361362]
[1729752790452,23.902374,173.11,173.07,18.67361362]
[1729752790853,23.902374,173.11,173.08,18.67361362]
[1729752794452,23.902374,173.11,173.07,18.67361362]
[1729752796956,23.902374,173.11,173.08,18.67361362]
[1729752800781,23.902374,173.11,173.0,7.2566784]
[1729752801077,18.67361362,173.08,173.03,18.67361362]
[1729752801763,18.67361362,173.08,172.97,0.2]
[1729752801983,18.67361362,173.08,172.96,2.47410796]
[1729752801984,0.1,173.07,173.03,18.67361362]
[1729752802284,23.876884,173.07,173.03,18.67361362]
[1729752803274,18.77361362,173.06,173.01,18.67361362]
[1729752803459,23.776884,173.04,173.0,18.67361362]
[1729752804260,0.2,173.05,172.94,0.28314816]
[1729752804458,23.776884,173.03,172.99,18.67361362]
[1729752806690,23.876884,173.01,172.94,0.28314816]
[1729752807009,23.876884,173.01,172.97,18.67361362]
[1729752807179,29.657084,173.01,172.94,0.28314816]
[1729752807488,23.876884,173.01,172.98,18.67361362]
[1729752807697,23.976884,173.01,172.98,18.67361362]
[1729752807878,23.976884,173.01,172.97,18.67361362]
[1729752808075,23.876884,173.01,172.9,8.4480157]
[1729752808286,23.976884,173.01,172.96,18.67361362]
[1729752808482,23.976884,173.01,172.98,18.67361362]
[1729752808688,23.976884,173.01,172.97,18.67361362]
[1729752809092,23.876884,173.01,172.9,8.4480157]
[1729752809292,23.976884,173.01,172.97,18.67361362]
[1729752810503,23.876884,173.01,172.97,18.67361362]
[1729752810702,23.976884,173.01,172.97,18.67361362]
[1729752814510,23.876884,173.01,172.97,18.67361362]
[1729752814673,23.976884,173.01,172.97,18.67361362]
[1729752815408,23.976884,173.01,172.96,18.67361362]
[1729752815586,15.7538,173.07,172.9,83.14247018]
[1729752815587,0.1,173.09,173.0,93.3680681]
[1729752815788,0.1,173.09,173.06,18.67361362]
[1729752815993,6.2775,173.1,173.06,18.67361362]
[1729752816288,0.1,173.07,173.06,18.67361362]
[1729752816881,0.1,173.07,173.05,18.67361362]
[1729752817086,0.2,173.07,173.0,8.79386274]
[1729752817299,0.1,173.07,173.05,18.67361362]
[1729752817705,0.1,173.07,173.06,18.67361362]
[1729752819110,23.976884,173.07,172.97,0.12549]
[1729752819407,23.976884,173.07,173.03,18.67361362]
[1729752819710,0.2,173.07,173.03,18.67361362]
[1729752820686,0.2,173.07,173.04,18.67361362]
[1729752822511,0.2,173.07,172.97,0.12549]
[1729752822715,0.2,173.07,173.04,18.67361362]
[1729752823197,6.2775,173.1,173.06,18.67361362]
[1729752823405,6.2775,173.1,173.08,18.67361362]
[1729752824505,23.776884,173.09,173.08,18.67361362]
[1729752825214,0.1,173.08,173.07,18.67361362]
[1729752826303,0.1,173.08,173.06,18.67361362]
[1729752827114,0.1,173.08,173.05,18.67361362]
[1729752827623,23.776884,173.09,173.0,8.69087385]
[1729752827801,0.1,173.08,173.05,18.67361362]
[1729752829124,0.1,173.08,173.06,18.67361362]
[1729752830004,0.1,173.08,173.07,18.67361362]
[1729752830712,23.776884,173.09,173.07,18.67361362]
[1729752831603,23.876884,173.09,173.07,18.67361362]
[1729752831805,23.776884,173.09,173.07,18.67361362]
[1729752832326,0.1,173.08,173.0,83.38532833]
[1729752832626,0.1,173.08,173.06,18.67361362]
[1729752834402,0.1,173.08,173.05,18.67361362]
[1729752834706,23.776884,173.09,173.05,18.67361362]
[1729752834901,0.1,173.08,173.05,18.67361362]
[1729752835425,23.776884,173.09,173.05,18.67361362]
[1729752835730,0.1,173.08,173.05,18.67361362]
[1729752838344,23.776884,173.09,173.05,18.67361362]
[1729752838528,0.1,173.08,173.0,8.69087385]
[1729752838736,0.1,173.08,173.05,18.67361362]
[1729752839343,23.776884,173.09,173.05,18.67361362]
[1729752839524,23.876884,173.09,173.05,18.67361362]
[1729752840341,0.1,173.08,173.05,18.67361362]
[1729752841542,23.776884,173.09,173.0,83.38532833]
[1729752841751,0.1,173.08,173.05,18.67361362]
[1729752842737,0.1,173.08,173.0,83.38532833]
[1729752842939,0.1,173.08,173.05,18.67361362]
[1729752844443,0.2,173.08,173.0,8.69087385]
[1729752844661,23.876884,173.04,172.96,6.13490887]
[1729752844938,23.876884,173.04,172.97,18.67361362]
[1729752844939,18.67361362,173.02,172.97,18.67361362]
[1729752845143,23.776884,173.01,172.98,18.67361362]
[1729752845346,23.776884,173.01,172.99,18.67361362]
[1729752845546,23.776884,173.04,172.95,8.69087385]
[1729752845844,23.776884,173.04,173.02,18.67361362]
[1729752846051,23.776884,173.04,173.03,9.33680681]
[1729752846228,6.0748,173.08,173.03,18.67361362]
[1729752846420,0.1,173.08,173.05,18.67361362]
[1729752846748,0.1,173.08,173.06,18.67361362]
[1729752847251,0.1,173.08,173.05,18.67361362]
[1729752847617,0.1,173.09,173.05,18.67361362]
[1729752847828,0.1,173.08,173.05,18.67361362]
[1729752849152,0.1,173.08,173.0,8.69087385]
[1729752849328,0.1,173.08,173.05,18.67361362]
[1729752849839,0.1,173.08,172.96,8.94185385]
[1729752850029,0.1,173.08,173.04,18.67361362]
[1729752850642,0.1,173.08,173.05,18.67361362]
[1729752851650,23.876884,173.09,173.06,18.67361362]
[1729752853957,0.1,173.08,173.06,18.67361362]
[1729752854332,0.1,173.08,172.96,11.8986276]
[1729752854524,0.1,173.08,173.05,18.67361362]
[1729752855052,0.1,173.07,173.03,18.67361362]
[1729752855226,0.1,173.07,172.96,11.8986276]
[1729752855227,23.976884,173.07,173.02,18.67361362]
[1729752855423,23.976884,173.07,172.96,11.8986276]
[1729752855653,23.976884,173.07,173.02,18.67361362]
[1729752855823,23.976884,173.07,173.03,18.67361362]
[1729752856126,0.2,173.06,173.01,18.67361362]
[1729752856547,0.2,173.06,173.02,18.67361362]
[1729752858544,0.1,173.05,173.0,18.67361362]
[1729752858750,23.976884,173.05,173.0,18.67361362]
[1729752858962,23.976884,173.05,173.01,18.67361362]
[1729752859133,23.976884,173.05,172.96,8.81636385]
[1729752859453,23.976884,173.05,173.01,18.67361362]
[1729752859635,23.876884,173.05,173.01,18.67361362]
[1729752859834,23.976884,173.05,173.01,18.67361362]
[1729752860151,23.976884,173.05,172.96,8.81636385]
[1729752860355,23.976884,173.05,173.01,18.67361362]
[1729752861133,42.65049762,173.05,173.0,18.67361362]
[1729752861546,23.876884,173.05,173.01,18.67361362]
[1729752863029,23.776884,173.05,173.01,18.67361362]
[1729752863224,23.876884,173.05,173.01,18.67361362]
[1729752864252,0.1,173.08,173.04,18.67361362]
[1729752864457,0.1,173.08,173.05,18.67361362]
[1729752865454,0.2,173.08,173.04,18.67361362]
[1729752865637,0.2,173.08,172.97,0.12549]
[1729752865944,23.976884,173.08,172.97,8.81636385]
[1729752866152,23.876884,173.08,173.04,18.67361362]
[1729752866326,23.976884,173.08,173.04,18.67361362]
[1729752867261,23.976884,173.08,172.99,0.28306632]
[1729752867471,23.976884,173.08,173.04,18.67361362]
[1729752868459,42.65049762,173.08,173.03,18.67361362]
[1729752869354,0.2,173.08,173.03,18.67361362]
[1729752869549,23.776884,173.07,173.03,18.67361362]
[1729752872361,23.776884,173.07,173.02,18.67361362]
[1729752873938,23.776884,173.07,173.03,18.67361362]
[1729752875157,42.45049762,173.07,173.02,18.67361362]
[1729752875356,23.776884,173.07,173.03,18.37361362]
[1729752879859,23.776884,173.07,172.99,0.28306632]
[1729752880166,23.776884,173.07,173.02,18.67361362]
[1729752880461,23.776884,173.07,173.03,18.67361362]
[1729752882665,23.776884,173.07,173.02,18.67361362]
[1729752887671,23.776884,173.07,173.03,18.67361362]
[1729752888057,23.776884,173.07,172.99,0.28306632]
[1729752888058,23.776884,173.07,173.02,18.67361362]
[1729752888362,23.876884,173.07,172.99,0.28306632]
[1729752888558,0.1,173.07,172.98,0.12549]
[1729752888860,23.776884,173.05,173.01,18.67361362]
[1729752889847,23.776884,173.05,172.98,8.81636385]
[1729752890047,23.776884,173.05,173.0,18.67361362]
[1729752890253,23.776884,173.05,173.01,18.67361362]
[1729752890685,23.776884,173.05,172.98,8.81636385]
[1729752890971,23.976884,173.05,172.97,18.67361362]
[1729752891273,18.67361362,173.02,172.97,18.67361362]
[1729752891655,18.67361362,173.03,172.98,18.95669631]
[1729752892454,15.6338,173.04,172.98,0.28308269]
[1729752892455,18.67361362,173.02,172.98,0.28308269]
[1729752893770,23.776884,173.01,172.98,0.28308269]
[1729752894076,42.45049762,173.01,172.98,0.28308269]
[1729752894269,23.776884,173.01,172.98,0.28308269]
[1729752894451,42.45049762,173.01,172.98,0.28308269]
[1729752894654,23.776884,173.01,172.98,0.28308269]
[1729752894869,42.45049762,173.01,172.98,0.28308269]
[1729752895077,23.776884,173.01,172.97,18.67361362]
[1729752895366,18.67361362,173.0,172.95,18.67361362]
[1729752895950,42.45049762,173.01,172.96,18.67361362]
[1729752898074,42.45049762,173.01,172.92,9.06187055]
[1729752898075,42.55049762,173.01,172.92,9.06187055]
[1729752898276,42.45049762,173.01,172.95,18.67361362]
[1729752899376,23.776884,173.01,172.96,18.67361362]
[1729752899581,42.45049762,172.99,172.94,18.67361362]
[1729752899878,18.67361362,173.0,172.94,18.67361362]
[1729752900082,23.776884,172.99,172.94,18.67361362]
[1729752900457,23.776884,172.99,172.92,2.92696168]
[1729752900661,23.876884,172.99,172.93,18.67361362]
[1729752900858,23.776884,172.97,172.93,18.67361362]
[1729752902363,23.776884,172.99,172.95,18.67361362]
[1729752902881,23.776884,172.99,172.96,18.67361362]
[1729752903381,23.976884,173.03,172.98,18.67361362]
[1729752903582,18.87361362,173.03,172.98,18.67361362]
[1729752903965,18.77361362,173.02,172.97,18.67361362]
[1729752904684,18.67361362,173.02,172.97,18.67361362]
[1729752904985,23.776884,173.01,172.97,18.67361362]
[1729752905860,0.1,173.07,173.0,18.67361362]
[1729752906173,21.5825,173.08,173.06,18.67361362]
[1729752906174,15.3848,173.08,173.06,18.67361362]
[1729752906480,0.2,173.11,173.01,7.99645719]
[1729752906481,0.1,173.11,173.07,18.67361362]
[1729752906783,21.5825,173.13,173.1,18.67361362]
[1729752907080,21.5825,173.13,173.01,14.13136606]
[1729752907081,21.5825,173.13,173.11,18.67361362]
[1729752907281,21.6825,173.13,173.11,18.67361362]
[1729752907671,0.1,173.11,173.02,0.12549]
[1729752907874,0.2,173.11,173.07,18.67361362]
[1729752908389,23.976884,173.11,173.07,18.67361362]
[1729752909866,0.2,173.11,173.07,18.67361362]
[1729752910261,0.2,173.11,173.08,18.67361362]
[1729752910869,0.2,173.11,173.02,0.12549]
[1729752911166,0.2,173.11,173.07,18.67361362]
[1729752911685,18.87361362,173.08,172.97,6.13490887]
[1729752911888,23.876884,173.07,173.03,18.67361362]
[1729752912066,23.976884,173.07,173.03,18.67361362]
[1729752912466,0.2,173.07,172.96,2.98815845]
[1729752912668,0.2,173.07,173.04,18.67361362]
[1729752913197,0.1,173.07,173.04,18.67361362]
[1729752913367,0.1,173.09,173.06,18.67361362]
[1729752913573,23.976884,173.12,173.01,7.99645719]
[1729752913778,0.1,173.11,173.02,0.12549]
[1729752914084,0.1,173.08,173.04,18.67361362]
[1729752914292,0.2,173.08,173.04,18.67361362]
[1729752914989,23.976884,173.08,173.04,18.67361362]
[1729752916886,42.65049762,173.08,172.98,0.25098]
[1729752917086,42.65049762,173.08,173.03,18.67361362]
[1729752917268,23.976884,173.08,173.04,18.67361362]
[1729752918472,0.1,173.06,172.96,7.99645719]
[1729752918675,23.876884,173.04,172.96,7.99645719]
[1729752918870,23.876884,173.04,172.92,6.13490887]
[1729752918871,42.65049762,173.04,172.99,18.67361362]
[1729752920492,0.1,173.03,172.99,18.67361362]
[1729752921286,42.65049762,173.04,172.99,18.67361362]
[1729752921491,18.87361362,173.03,172.98,18.67361362]
[1729752921697,23.776884,173.02,172.98,18.67361362]
[1729752921885,23.876884,173.02,172.98,18.67361362]
[1729752922205,23.776884,173.02,172.98,18.67361362]
[1729752922695,23.876884,173.02,172.98,18.67361362]
[1729752924683,23.776884,173.02,172.98,18.67361362]
[1729752925395,23.876884,173.02,172.98,18.67361362]
[1729752925902,0.1,173.01,172.97,18.67361362]
[1729752926701,42.65049762,173.02,172.97,18.67361362]
[1729752926895,0.1,173.01,172.97,18.67361362]
[1729752927078,0.1,173.0,172.92,7.99645719]
[1729752927283,42.65049762,173.0,172.95,18.67361362]
[1729752927486,23.976884,173.0,172.95,18.67361362]
[1729752928293,22.7109,172.99,172.9,6.00434601]
[1729752928499,23.776884,172.98,172.95,18.67361362]
[1729752928680,23.776884,172.98,172.89,0.12549]
[1729752928880,23.776884,172.98,172.96,18.67361362]
[1729752929091,23.776884,172.98,172.89,14.12780058]
[1729752929296,42.65049762,172.96,172.89,14.00231058]
[1729752929492,23.776884,172.95,172.91,18.67361362]
[1729752929699,23.876884,172.95,172.91,18.67361362]
[1729752930603,23.976884,172.95,172.9,18.67361362]
[1729752930978,23.776884,172.93,172.89,18.67361362]
[1729752931586,0.1,172.92,172.89,18.67361362]
[1729752931785,0.1,172.92,172.88,18.67361362]
[1729752931987,0.1,172.92,172.89,18.67361362]
[1729752932890,23.976884,172.93,172.84,7.99645719]
[1729752933109,0.1,172.92,172.89,18.67361362]
[1729752933609,23.976884,172.93,172.89,18.67361362]
[1729752934405,0.1,172.92,172.89,18.67361362]
[1729752934778,23.976884,172.93,172.9,18.67361362]
[1729752935002,0.2,172.93,172.9,18.67361362]
[1729752935702,0.1,172.92,172.9,18.67361362]
[1729752936085,0.1,172.93,172.9,18.67361362]
[1729752936303,0.1,172.93,172.91,18.67361362]
[1729752937599,0.2,172.94,172.85,0.12549]
[1729752937807,0.2,172.94,172.92,18.67361362]
[1729752938200,0.1,172.93,172.91,18.67361362]
[1729752940810,0.1,172.94,172.91,18.67361362]
[1729752940989,0.2,172.94,172.91,18.67361362]
[1729752941709,0.1,172.92,172.85,8.12194719]
[1729752941911,0.1,172.92,172.9,18.67361362]
[1729752943911,0.2,172.92,172.87,18.67361362]
[1729752944411,42.45049762,172.91,172.86,18.67361362]
[1729752944598,0.1,172.9,172.82,2.97309946]
[1729752944797,0.1,172.9,172.88,18.67361362]
[1729752945815,0.1,172.9,172.87,18.67361362]
[1729752945995,0.1,172.9,172.86,18.67361362]
[1729752947017,0.1,172.94,172.89,18.67361362]
[1729752947205,0.1,172.93,172.81,0.12549]
[1729752947407,0.1,172.93,172.92,18.67361362]
[1729752947598,0.1,172.93,172.91,18.67361362]
[1729752948000,0.1,172.94,172.91,18.67361362]
[1729752948317,0.1,172.93,172.91,18.67361362]
[1729752950007,0.1,172.93,172.9,18.67361362]
[1729752950213,0.1,172.93,172.91,18.67361362]
[1729752951099,0.1,172.93,172.92,18.67361362]
[1729752953417,0.1,172.93,172.91,18.67361362]
[1729752954014,0.1,172.93,172.92,18.67361362]
[1729752955830,0.1,172.91,172.89,18.67361362]
[1729752956126,0.1,172.91,172.83,0.12549]
[1729752956421,0.1,172.91,172.89,18.67361362]
[1729752956837,0.1,172.91,172.82,6.00209578]
[1729752956838,0.1,172.91,172.9,18.67361362]
[1729752957132,0.1,172.91,172.89,18.67361362]
[1729752957334,0.1,172.91,172.9,18.67361362]
[1729752957628,0.1,172.92,172.82,6.00209578]
[1729752957831,0.1,172.94,172.91,18.67361362]
[1729752958014,0.1,172.94,172.93,18.67361362]
[1729752958215,0.1,172.93,172.92,18.67361362]
[1729752959038,0.1,172.94,172.92,18.67361362]
[1729752959331,0.1,172.93,172.92,18.67361362]
[1729752959913,0.1,172.94,172.92,18.67361362]
[1729752960120,23.876884,172.95,172.93,18.67361362]
[1729752960314,23.876884,172.95,172.94,18.67361362]
[1729752962220,21.7637,172.96,172.94,18.67361362]
[1729752962415,18.67361362,173.0,172.9,74.69445448]
[1729752962416,21.7655,173.0,172.95,18.67361362]
[1729752962623,21.7655,173.0,172.99,18.67361362]
[1729752963230,21.6655,173.0,172.99,18.67361362]
[1729752963430,21.7655,173.0,172.99,18.67361362]
[1729752963636,0.1,172.98,172.9,74.69445448]
[1729752963841,0.1,172.98,172.97,18.67361362]
[1729752965640,0.1,172.98,172.9,74.69445448]
[1729752965944,0.1,172.98,172.97,18.67361362]
[1729752969419,23.776884,172.99,172.97,18.67361362]
[1729752969724,0.1,173.01,172.98,18.67361362]
[1729752969929,0.1,173.02,173.0,18.67361362]
[1729752970234,0.1,173.02,173.01,18.67361362]
[1729752970437,0.1,173.03,173.01,18.67361362]
[1729752970739,0.1,173.03,173.02,18.67361362]
[1729752970943,21.7004,173.04,173.02,18.67361362]
[1729752971125,0.1,173.05,173.03,18.67361362]
[1729752971446,0.1,173.06,173.04,18.67361362]
[1729752971745,0.2,173.07,173.05,18.67361362]
[1729752971923,0.2,173.07,173.06,18.67361362]
[1729752972123,0.1,173.07,173.06,18.67361362]
[1729752972328,0.2,173.07,173.06,18.67361362]
[1729752972931,23.976884,173.07,173.06,18.67361362]
[1729752973245,23.876884,173.07,173.06,18.67361362]
[1729752973640,23.976884,173.07,173.06,18.67361362]
[1729752974529,23.976884,173.07,173.05,18.67361362]
[1729752974730,0.1,173.06,173.05,18.67361362]
[1729752976132,23.976884,173.07,173.05,18.67361362]
[1729752976330,0.1,173.06,173.05,18.67361362]
[1729752977343,23.876884,173.07,173.05,18.67361362]
[1729752977547,0.1,173.06,173.05,18.67361362]
[1729752986648,23.876884,173.07,173.05,18.67361362]
[1729752986855,0.1,173.09,173.06,18.67361362]
[1729752987057,0.1,173.11,173.08,18.67361362]
[1729752987226,21.7004,173.12,173.1,18.67361362]
[1729752987433,21.7004,173.12,173.11,18.67361362]
[1729752987641,21.6004,173.12,173.11,18.67361362]
[1729752987863,0.2,173.15,173.11,18.67361362]
[1729752988155,0.2,173.15,173.0,82.69091167]
[1729752988156,0.2,173.15,173.13,18.67361362]
[1729752988858,0.1,173.14,173.13,18.67361362]
[1729752989160,0.2,173.15,173.13,18.67361362]
[1729752990931,23.776884,173.16,173.14,18.67361362]
[1729752991132,23.876884,173.16,173.15,18.67361362]
[1729752991334,0.2,173.19,173.15,18.67361362]
[1729752991550,0.1,173.2,173.18,18.67361362]
[1729752991851,0.2,173.2,173.18,18.67361362]
[1729752992452,0.1,173.19,173.18,18.67361362]
[1729752992650,0.1,173.19,173.1,74.69445448]
[1729752992651,0.1,173.19,173.17,18.67361362]
[1729752992959,0.1,173.16,173.14,18.67361362]
[1729752993452,0.1,173.16,173.15,18.67361362]
[1729752994443,0.1,173.17,173.15,18.67361362]
[1729752994744,0.1,173.16,173.1,74.69445448]
[1729752994939,0.1,173.16,173.15,18.67361362]
[1729752995841,23.876884,173.18,173.15,18.67361362]
[1729752995842,0.1,173.17,173.15,18.67361362]
[1729752996035,0.1,173.16,173.15,18.67361362]
[1729752997553,0.1,173.16,173.1,74.69445448]
[1729752997762,0.1,173.14,173.12,18.67361362]
[1729752997940,0.1,173.14,173.0,74.69445448]
[1729752997941,0.2,173.12,173.09,18.67361362]
[1729752998140,0.2,173.1,173.06,18.67361362]
[1729752998664,0.1,173.08,173.06,18.67361362]
[1729752998839,0.1,173.09,173.07,18.67361362]
[1729752999446,0.1,173.08,173.0,82.69091167]
[1729752999650,0.1,173.08,173.06,18.67361362]
[1729753000169,0.1,173.08,173.04,18.67361362]
[1729753000170,0.1,173.07,173.04,18.67361362]
[1729753001950,0.1,173.07,173.03,18.67361362]
[1729753002360,0.2,173.06,172.95,0.12549]
[1729753002671,0.1,173.05,173.02,18.67361362]
[1729753002962,0.1,173.05,172.95,7.99645719]
[1729753002963,0.1,173.05,173.03,18.67361362]
[1729753003565,45.426784,173.06,173.03,18.67361362]
[1729753003863,0.1,173.04,173.03,18.67361362]
[1729753004045,0.1,173.04,173.02,18.67361362]
[1729753005367,0.1,173.04,172.96,7.99645719]
[1729753005368,45.426784,173.06,173.03,18.67361362]
[1729753005566,45.426784,173.06,173.05,18.67361362]
[1729753005752,45.526784,173.06,173.05,18.67361362]
[1729753005950,45.426784,173.06,173.05,18.67361362]
[1729753006160,0.1,173.07,173.05,18.67361362]
[1729753006374,0.1,173.09,173.06,18.67361362]
[1729753006664,0.1,173.09,173.0,74.69445448]
[1729753006665,21.5499,173.1,173.08,18.67361362]
[1729753006968,21.5499,173.1,173.09,18.67361362]
[1729753007474,21.6499,173.1,173.08,18.67361362]
[1729753007765,0.1,173.08,173.06,18.67361362]
[1729753009050,21.6499,173.1,173.07,18.67361362]
[1729753009252,0.1,173.12,173.09,18.67361362]
[1729753009445,0.1,173.13,173.1,18.67361362]
[1729753009866,0.2,173.13,173.11,18.67361362]
[1729753010974,0.2,173.13,173.01,0.12549]
[1729753010975,21.7499,173.15,173.12,18.67361362]
[1729753011265,0.1,173.12,173.1,18.67361362]
[1729753011457,0.2,173.12,173.09,18.67361362]
[1729753011658,0.2,173.12,173.1,18.67361362]
[1729753012060,0.1,173.12,173.1,18.67361362]
[1729753012271,0.2,173.12,173.1,18.67361362]
[1729753012644,0.2,173.11,173.09,18.67361362]
[1729753012954,0.2,173.11,173.1,18.67361362]
[1729753013669,0.2,173.11,173.09,18.67361362]
[1729753015561,0.1,173.11,173.09,18.67361362]
[1729753015749,0.2,173.11,173.09,18.67361362]
[1729753015950,0.2,173.11,173.1,18.67361362]
[1729753027475,0.1,173.12,173.1,18.67361362]
[1729753027667,0.1,173.13,173.11,18.67361362]
[1729753027977,0.1,173.13,173.12,18.67361362]
[1729753031985,23.976884,173.14,173.12,18.67361362]
[1729753032290,0.1,173.11,173.07,0.12549]